Cogmind - Beta 13 @@@ ROGUE MODE // 2024.05.21 @ 22:41:21 Player: CrossedViper Result: Destroyed by YP-23R(R) with Subdweller Machine Gun Performance ------------- Evolutions (0) 0 Regions Visited (3) 600 Robots Destroyed (26) 130 Value Destroyed (715) 715 Prototype IDs (10) 200 Alien Tech Used (0) 0 Bonus (-216) -216 TOTAL SCORE: 1429 Bonus ------- Follower Combat Kills 21 Friendly Fire -237 Cogmind --------- Core Integrity 0/250 Matter 300/300 Energy 128/250 System Corruption 0% Temperature Warning (363) Movement Treading (240) Ox1 Location -10/Subcaves Parts ------- > --- POWER (1) -------- Ion Engine > --- PROPULSION (2) --- Light Treads > --- UTILITY (2) ------ Scrap Shield > --- WEAPON (2) ------- Subdweller Beam Cannon Heavy Particle Cannon > --- INVENTORY (5) ---- Medium Storage Unit Improved Terrain Scanner Subdweller Laser Subdweller Machine Gun Subdweller Shrapnel Launcher Peak State ------------ > --- POWER ------------ Ion Engine > --- PROPULSION ------- Light Treads Light Treads > --- UTILITY ---------- Medium Storage Unit Reactive Plating > --- WEAPON ----------- Heavy Particle Cannon Assault Rifle > --- INVENTORY -------- Deuterium Engine Light Angular Momentum Engine Improved Heat Sink Improved Terrain Scanner Hardlight Generator Improved Trap Extractor Medium Laser Small Laser Field Laser [Rating: 13] Favorites ----------- Power Ion Engine Engine Ion Engine Propulsion Light Treads Treads Light Treads Utility Scrap Shield Storage Small Storage Unit Protection Scrap Shield Weapon Heavy Particle Cannon Energy Gun Medium Laser Energy Cannon Heavy Particle Cannon Ballistic Gun Assault Rifle Build | -11 -10 -10 -10 ------- Run | Yrd Mat Min Sub Slots Evolved . | . . . . Power . | . . . . Propulsion . | . . . . Utility . | . . . . Weapon . | . . . . Parts Attached 14 | 6 . 4 4 Power 2 | 1 . 1 . Engine 2 | 1 . 1 . Core . | . . . . Reactor . | . . . . Propulsion 2 | 2 . . . Treads 2 | 2 . . . Leg . | . . . . Wheel . | . . . . Hover . | . . . . Flight . | . . . . Utility 4 | 1 . 2 1 Device . | . . . . Storage 2 | 1 . 1 . Processor . | . . . . Hackware . | . . . . Protection 2 | . . 1 1 Artifact . | . . . . Weapon 6 | 2 . 1 3 Energy Gun 3 | 1 . . 2 Energy Cannon 2 | . . 1 1 Ballistic Gun 1 | 1 . . . Ballistic Cannon . | . . . . Launcher . | . . . . Special Weapon . | . . . . Impact Weapon . | . . . . Slashing Weapon . | . . . . Piercing Weapon . | . . . . Special Melee Weapon . | . . . . Unidentified Prototypes . | . . . . Parts Lost 1 | . . . 1 Power . | . . . . Propulsion 1 | . . . 1 Utility . | . . . . Weapon . | . . . . Highest Loss Streak 1 | . . . 1 To Critical Strikes . | . . . . Average Slot Usage (%) 88 | . 85 90 87 Engine 14 | . 14 14 14 Treads 27 | . 28 28 27 Storage 5 | . 14 14 2 Protection 11 | . . 5 13 Energy Gun 7 | . 14 13 5 Energy Cannon 12 | . . . 16 Ballistic Gun 8 | . 14 14 6 Naked Turns . | . . . . Heaviest Build 37 | 12 12 33 37 Greatest Support 40 | 40 40 40 40 Greatest Overweight (x) . | . . . . Average Overweight (x) . | . . . . Largest Inventory Capacity 10 | 8 8 10 10 Average Capacity 6 | 7 8 8 5 Most Carried 9 | 4 5 9 9 Average Carried 5 | 2 4 6 5 Final Capacity 10 | 8 8 10 5 Final Carried 9 | 4 5 9 5 Class Distribution -------------------- 100% | Mutant Dominant Class ---------------- Mutant | -10/Materials Mutant | -10/Mines Mutant | -10/Subcaves Resources | -11 -10 -10 -10 ----------- Run | Yrd Mat Min Sub Matter Collected 523 | 272 . 108 143 Remotely . | . . . . Salvage Created 991 | 110 23 176 682 Parts 61 | 4 5 5 47 Haulers Intercepted . | . . . . Recyclers Shooed . | . . . . Parts Field Recycled . | . . . . Retrieved Matter . | . . . . Parts Self-Destructed 14 | . . . 14 Prevented . | . . . . Kills | -11 -10 -10 -10 ------- Run | Yrd Mat Min Sub Combat Hostiles Destroyed 21 | . . 3 18 Guns 3 | . . 3 . Cannons 18 | . . . 18 Classes Destroyed 7 | 2 1 2 2 Worker 2 | 2 . . . Recycler 1 | 1 . . . Watcher 1 | . 1 . . Swarmer 5 | . . 1 4 Grunt 2 | . . 2 . Artisan 2 | . . . 2 Subdweller 14 | . . . 14 Thug 1 | . . 1 . Best Kill Streak 4 | 3 1 2 4 Combat Bots Only 4 | . . 2 4 Max Kills in Single Turn 1 | 1 1 1 1 Gunslinging . | . . . . Exploded . | . . . . Melee . | . . . . Uniques/NPCs Destroyed . | . . . . Combat | -11 -10 -10 -10 -------- Run | Yrd Mat Min Sub Hostile Shots Fired 100 | . . 27 73 Missed 22 | . . 6 16 Damage Taken 1294 | . . 198 1096 Core 255 | . . 41 214 Absorbed by Shields . | . . . . Ignored by Resistances 27 | . . 6 21 Core Remaining (%) 100 | 100 . . . Volleys Fired 144 | 4 5 27 108 Largest 2 | 2 2 2 2 Hottest 155 | 70 70 75 155 Shots Fired 234 | 8 10 48 168 Gun 98 | 8 10 42 38 Cannon 136 | . . 6 130 Launcher . | . . . . Special . | . . . . Kinetic 61 | 4 5 21 31 Thermal 173 | 4 5 27 137 Explosive . | . . . . Electromagnetic . | . . . . Robot Hit Streak 16 | 3 2 10 16 Robot Miss Streak 7 | 2 2 7 2 Penetration Max . | . . . . Secondary Targets . | . . . . Shots Hit Robots 119 | 4 5 27 83 Core Hits 36 | 4 3 6 23 Critical Kills . | . . . . Critical Parts Destroyed . | . . . . Critical Strikes 1 | . . 1 . Burn 1 | . . 1 . Melee Attacks . | . . . . Impact . | . . . . Slashing . | . . . . Piercing . | . . . . Sneak Attacks . | . . . . Combat Hostiles . | . . . . Follow-up Attacks . | . . . . Damage Inflicted 2331 | 64 64 372 1831 Guns 745 | 64 64 372 245 Cannons 1586 | . . . 1586 Explosions . | . . . . Melee . | . . . . Ramming . | . . . . Kinetic 481 | 25 52 233 171 Thermal 1850 | 39 12 139 1660 Explosive . | . . . . Electromagnetic . | . . . . Impact . | . . . . Slashing . | . . . . Piercing . | . . . . Highest Corruption . | . . . . Average Corruption . | . . . . Corruption Purged . | . . . . Corruption Blocked . | . . . . Overload Shots . | . . . . Overflow Damage 4 | . . . 4 Projectiles 4 | . . . 4 Explosions . | . . . . Melee . | . . . . Knockbacks . | . . . . Impact . | . . . . Kinetic . | . . . . Secondary . | . . . . Self-Inflicted Damage . | . . . . Shots . | . . . . Rammed . | . . . . Targets Rammed . | . . . . Kicked . | . . . . Crushed . | . . . . Highest Temperature 363 | 36 18 192 363 Average Temperature 55 | 19 9 68 54 Received Heat Transfer 222 | . . 57 165 Effects 1 | . . . 1 Energy Bleed 1 | . . . 1 Siege Activations . | . . . . Robots Corrupted . | . . . . Combat Hostiles . | . . . . Parts Fried . | . . . . Impact Corruptions . | . . . . Robots Melted . | . . . . Combat Hostiles . | . . . . Parts Melted 5 | 1 . . 4 Heat Transferred 3035 | 111 37 481 2406 Parts Sabotaged . | . . . . Parts Stolen . | . . . . Parts Stripped . | . . . . Power Chain Reactions . | . . . . Alert | -11 -10 -10 -10 ------- Run | Yrd Mat Min Sub Peak Influence 106 | 15 16 106 . Initial 9 | . 9 6 . Average 44 | 4 11 56 . Maximum Alert Level . | . . . . Low Security (%) 100 | 100 100 100 . Level 1 . | . . . . Level 2 . | . . . . Level 3 . | . . . . Level 4 . | . . . . Level 5 . | . . . . High Security . | . . . . Max Security . | . . . . Squads Dispatched . | . . . . Investigation . | . . . . Extermination . | . . . . Reinforcement . | . . . . Assault . | . . . . Garrison . | . . . . Intercept . | . . . . Searches Triggered . | . . . . Construction Impeded . | . . . . Haulers Reinforced . | . . . . Active Scanning Responses . | . . . . Cargo Convoy Interrupts . | . . . . Stealth | -11 -10 -10 -10 --------- Run | Yrd Mat Min Sub Distress Signals 1 | . 1 . . Communications Jammed . | . . . . Distress Signals . | . . . . Times Spotted 33 | . 2 8 23 Peak Tracking Total 4 | . 3 4 4 Tactical Retreats 4 | . . 1 3 Traps | -11 -10 -10 -10 ------- Run | Yrd Mat Min Sub Traps Triggered 1 | . . . 1 Indirectly . | . . . . Trap Hack Attempts . | . . . . Triggered . | . . . . Disarmed . | . . . . Reprogrammed . | . . . . Reused . | . . . . Traps Extracted . | . . . . Installed . | . . . . Triggered . | . . . . Machines | -11 -10 -10 -10 ---------- Run | Yrd Mat Min Sub Machines Disabled . | . . . . Max in Single Turn . | . . . . Machines Repaired . | . . . . Machines Dismantled . | . . . . Machines Sabotaged . | . . . . Overloaded Fab Kills . | . . . . Hacking | -11 -10 -10 -10 --------- Run | Yrd Mat Min Sub Machines Accessed 3 | . . 1 2 Terminals . | . . . . Fabricators . | . . . . Repair Stations . | . . . . Recycling Units . | . . . . Scanalyzers . | . . . . Garrison Access . | . . . . Total Hacks 8 | . . 1 7 Successful 8 | . . 1 7 Failed . | . . . . Catastrophic . | . . . . Database Lockouts . | . . . . Manual . | . . . . Terminals . | . . . . Fabricators . | . . . . Repair Stations . | . . . . Recycling Units . | . . . . Scanalyzers . | . . . . Garrison Access . | . . . . Terminal Hacks 8 | . . 1 7 Record 6 | . . . 6 Open Door 1 | . . 1 . Derelict Proto ID Bank 1 | . . . 1 Fabricator Hacks . | . . . . Repair Station Hacks . | . . . . Recycling Unit Hacks . | . . . . Scanalyzer . | . . . . Garrison Access Hacks . | . . . . Unauthorized Hacks . | . . . . Terminals . | . . . . Fabricators . | . . . . Repair Stations . | . . . . Recycling Units . | . . . . Scanalyzers . | . . . . Garrison Access . | . . . . Data Cores Recovered . | . . . . Used . | . . . . Hacking Detections . | . . . . Full Trace Events . | . . . . Feedback Events . | . . . . Feedback Blocked . | . . . . Robot Schematics Acquired . | . . . . Robots Built . | . . . . Authchips . | . . . . Time . | . . . . Total Robot Build Rating . | . . . . Part Schematics Acquired . | . . . . Parts Built . | . . . . Authchips . | . . . . Time . | . . . . Total Part Build Rating . | . . . . Parts Repaired . | . . . . Time . | . . . . Parts Recycled . | . . . . Recycled Matter . | . . . . Retrieved Matter . | . . . . Retrieved Components . | . . . . Parts Scanalyzed . | . . . . Part Schematics Acquired . | . . . . Parts Damaged . | . . . . Bothacking | -11 -10 -10 -10 ------------ Run | Yrd Mat Min Sub Used RIF Installer . | . . . . Robots Hacked . | . . . . Non-combat . | . . . . Combat . | . . . . Robot Hacks Applied . | . . . . Relay Couplers Released . | . . . . Fabnet Peak Effective % . | . . . . Robots Rewired . | . . . . Allies Hacked . | . . . . Hacks Repelled . | . . . . Allies | -11 -10 -10 -10 -------- Run | Yrd Mat Min Sub Total Allies 1 | . . 1 . Largest Group 1 | . . 1 . Highest-Rated Group 31 | . . 31 . Highest-Rated Ally 31 | . . 31 . Total Orders . | . . . . Ally Attacks 5 | . . 5 . Total Damage 103 | . . 103 . Kills 3 | . . 3 . Allies Corrupted . | . . . . Allies Melted . | . . . . Intel | -11 -10 -10 -10 ------- Run | Yrd Mat Min Sub Robot Analysis Total . | . . . . Derelict Logs Recovered 3 | . . 1 2 Drone Launches . | . . . . Drone Recoveries . | . . . . Exploration | -11 -10 -10 -10 ------------- Run | Yrd Mat Min Sub Turns Passed 3380 | 152 77 726 2425 Spaces Moved 1266 | 81 39 166 980 Core 1 | 1 . . . Treads 1265 | 80 39 166 980 Legs . | . . . . Wheels . | . . . . Hover . | . . . . Flight . | . . . . Fastest Speed 50 | 50 160 160 160 Average Speed 159 | 158 160 160 160 Slowest Speed 160 | 160 160 160 160 Overloaded Moves . | . . . . Propulsion Burnouts . | . . . . Robots Hopped . | . . . . Cave-ins Triggered . | . . . . Exploration Rate (%) 30 | 6 12 36 69 Regions Visited 3 Branch Regions 2 Pre-discovered Areas 1 | . . . 1 Known Exits Taken . | . . . . Unknown Exits Taken 3 | 1 1 1 . Scrap Searched 2 | . . 1 1 Spaces Dug 18 | . . . 18 Terrain Destroyed 29 | . . . 29 Melee . | . . . . Projectile 29 | . . . 29 AOE . | . . . . Terrain Rammed . | . . . . Walls Destroyed . | . . . . Machines Disabled . | . . . . Actions | -11 -10 -10 -10 --------- Run | Yrd Mat Min Sub Total 2390 | 94 44 579 1673 Wait 926 | . . 371 555 Move 1263 | 80 38 165 980 Hop . | . . . . Pick Up 18 | 4 1 8 5 Fast Attach 9 | 6 . 1 2 Attach 2 | . . 1 1 Detach 1 | . . . 1 Swap 3 | . . 2 1 Drop 16 | . . 4 12 Fire 144 | 4 5 27 108 Melee . | . . . . Ram . | . . . . Kick . | . . . . Crush . | . . . . Escape Stasis . | . . . . Rewire . | . . . . Trap . | . . . . Miscellaneous 8 | . . . 8 Route ------- -11/Scrapyard -10/Materials -10/Mines (discovered 2 exits: [*Mat] / *Sub) -10/Subcaves (discovered 1 exit: [*Mat]) History --------- Turn | Location | Event 16 | -11/Scrapyard | Discovered new exit (range 15) 153 | -11/Scrapyard | Entered Materials 165 | -10/Materials | Discovered new exit (range 11) 230 | -10/Materials | Entered Mines 294 | -10/Mines | Met a Derelict who couldn't figure out how to use a Trap Extractor 306 | -10/Mines | Build established: Mutant 764 | -10/Mines | Escorted by a lone wolf Derelict 838 | -10/Mines | Learned Materials security intel 867 | -10/Mines | Discovered new exit (range 5) 953 | -10/Mines | Discovered new exit (range 2) 956 | -10/Mines | Entered Subcaves 1017 | -10/Subcaves | Visited Clippyterm 1050 | -10/Subcaves | A swath of the cavern ceiling suddenly collapsed 1080 | -10/Subcaves | Shifting Twisted Machinery released Sub. Power Source 1141 | -10/Subcaves | Ambushed by Subdweller buried in earth 1336 | -10/Subcaves | A Subdweller sparked back to life 2108 | -10/Subcaves | Shifting Twisted Machinery released Sub. Laser 2109 | -10/Subcaves | Shifting Twisted Machinery released Sub. Beam Cannon 2511 | -10/Subcaves | Learned Materials trap positions 2634 | -10/Subcaves | Visited 4L-MR0's lab 2912 | -10/Subcaves | Learned location of Zion (-6) 2957 | -10/Subcaves | Core integrity fell below 50% 2993 | -10/Subcaves | Discovered new exit (range 14) 3360 | -10/Subcaves | Ambushed by angry Subdweller bent on revenge 3363 | -10/Subcaves | Ambushed by Subdweller buried in earth 3370 | -10/Subcaves | Core integrity fell below 20% 3381 | -10/Subcaves | Destroyed by YP-23R(R) with Subdweller Machine Gun Last Messages --------------- 03245_ Scrap Shield Fragment affixed to Scrap Shield (+39). 03246_ JP-36R(R) destroyed. 03252_ Scrap Shield Fragment affixed to Scrap Shield (+50). 03255_ Scrap Shield Fragment affixed to Scrap Shield (+49). 03259_ Dropped Broken Sub. Laser. 03263_ Acquired Sub. Machine Gun. 03348_ CY-OJ3(u) tweaks Twisted Machinery. 03350_ CY-OJ3(u) builds Twisted Machinery. 03357_ CY-OJ3(u) cries out in pain. 03357_ CY-OJ3(u) destroyed. 03360_ 2R-1TY(R) angrily emerges from the Twisted Machinery. 03360_ 2R-1TY(R): "SUBHATE!" 03364_ YP-23R(R): "ARGHSUB!" 03370_ Overheating: Energy bleed (-34). 03377_ Lgt. Treads destroyed. 03378_ Destroyed Scrap Shield. Map ----- +----------------------------------------------------+ | # ##?????????????????# #???????????????????? | | ## ??????????????????# #????????????????????# | | ? ?????????????????## #????????????????????# | | # #?????????????????# ##???????????????????# | | #?????????????????# #???????????????????# # | | " #?????????????????# #??????????????????? ? | | #?????????????????## ##??????????????????? #? | | ""??????????????????# #?????????????????????? | | "" ??????????????????## #?????????????????????? | | ???????????????????# ##?????????????????????? | | ? ???????????????????# #?????????????????????? | | #?? ??????????????????## ##?????????????????????? | | ??????????????????????# #?????????????????????? | | ??????????????????????# ##?????????????????????? | | ??????????????????????# #?????????????????????? | | ??????????????????????## #?????????????????????? | | ???????????????????????# #?????????????????????? | | ??????????????????????## ##?????????????????????? | | ??????????????????????# #?????????????????????? | | ??????????????????????## #?????????????????????? | | ???????????????????????#% ##?????????????????????? | | ???????????????????????#* #??????????????????????? | | ??????????????????????## ##?????????????????????? | | ??????????????????????# #?????????????????????? | | ??????????????????????# ##?????????????????????? | | ??????????????????????##"@#??????????????????????? | | ???????????????????????# R#?????????????????????? | | ??????????????????????# R;#????????????????????? | | ??????????????????????### # #???????????????????? | | ????????????????????????# ###???????????????????? | | ????????????????????????# ##?????????????????????? | | ???????????????????????? #??????????????????????? | | ???????????????????????? ??????????????????????? | | ???????????????????????? ??????????????????????? | | ????????????????????????###??????????????????????? | | ?????????????????????????????????????????????????? | | ?????????????????????????????????????????????????? | | ?????????????????????????????????????????????????? | | ?????????????????????????????????????????????????? | | ?????????????????????????????????????????????????? | | ?????????????????????????????????????????????????? | | ?????????????????????????????????????????????????? | | ?????????????????????????????????????????????????? | | ?????????????????????????????????????????????????? | | ?????????????????????????????????????????????????? | | ?????????????????????????????????????????????????? | | ?????????????????????????????????????????????????? | | ?????????????????????????????????????????????????? | | ?????????????????????????????????????????????????? | | ?????????????????????????????????????????????????? | +----------------------------------------------------+ Best States ------------- Heat Dissipation 25 Energy Generation 10 Energy Capacity 250 Matter Stores 300 Matter Capacity 300 Sight Range 16 Terrain Scan Density 10 Armor Coverage 800 Resistance: KI 20 Evasion (%) 40 Recoil Reduction 2 Item Schematics ----------------- None Robot Schematics ------------------ None Fabricated ------------ Nothing Alien Tech Used ----------------- None Achievements -------------- None Challenges ------------ None Game ------ Seed SniperHeartDoublenader Manual? 0 Play Time 00:16:55 Cumulative 791.4 hours Start 2024.05.21 @ 22:26:45 End 2024.05.21 @ 22:41:21 Sessions 1 Manual Loads 0 Difficulty Rogue Special Mode None Game No. 509 Rogue 502 Adventurer 0 Explorer 7 Win Type - Total 55 Types 20/5/19/2/0/1/6/1/1 Lore% 89 Gallery% 96 Achievement% 84 Wizard Run 0 Options --------- Layout 2 ASCII 0 Keyboard 0 Movement Mouse Keybinds 0 Fullscreen 1 Font 24/Tamsyn Map View 50x44 Zoom Use 0% Tactical HUD 1 Map Filters NONE Filters NONE Steam 1 RUN: d1f8f913-ba7d-4dbe-b5af-e48f94df05e6